[Event "Int SVK-ch Open 2020"]
[Site "Drienica"]
[Date "2020.08.09"]
[Round "3.19"]
[White "Bochnickova, Simona"]
[Black "Kulich, Daniel"]
[Result "1-0"]
[ECO "C42"]
[WhiteElo "1797"]
[BlackElo "1492"]
[Annotator "NA"]
[PlyCount "49"]
[EventDate "2020.08.07"]
[EventType "swiss"]
[EventCountry "SVK"]
[SourceTitle "playchess.com"]
[Source "ChessBase"]
[SourceQuality "1"]
[TimeControl "40/5400+30:1800+30"]

1. e4 {[%emt 0:00:00]} e5 {[%emt 0:00:00]} 2. Nf3 {[%emt 0:00:00]} Nf6 {[%emt 0:00:00]} 3. Nxe5 {[%emt 0:00:59]} d6 {[%emt 0:00:37]} 4. Nf3 {[%emt 0:00:06]} Nxe4 {[%emt 0:00:07]} 5. Qe2 {[%emt 0:00:12]} Qe7 {[%emt 0:00:08]} 6. d3 {[%emt 0:00:05]} Nf6 {[%emt 0:00:09]} 7. Bg5 {[%emt 0:00:04]} Qxe2+ {[%emt 0:00:14]} 8. Bxe2 {[%emt 0:00:08]} Be7 {[%emt 0:00:17]} 9. Nc3 {[%emt 0:00:39]} h6 {[%emt 0:01:37]} 10. Bh4 {[%emt 0:01:03]} O-O {[%emt 0:03:10]} 11. O-O-O {[%emt 0:01:05]} Bd7 {[%emt 0:06:01]} 12. Rhe1 {[%emt 0:00:48]} c5 {[%emt 0:01:10]} 13. Bf1 {[%emt 0:03:02]} Re8 {[%emt 0:06:01]} 14. Ne4 {[%emt 0:04:36]} Nxe4 {[%emt 0:13:16]} 15. dxe4 {[%emt 0:00:10]} Bf8 {[%emt 0:07:33]} 16. Bg3 {[%emt 0:01:17]} Re6 {[%emt 0:00:31]} 17. Bc4 {[%emt 0:00:20]} Rf6 {[%emt 0:04:18]} 18. e5 {[%emt 0:00:31]} Rg6 {[%emt 0:09:18]} 19. exd6 {[%emt 0:00:11]} Rg4 {[%emt 0:01:23]} 20. Ne5 {[%emt 0:01:15]} Rd4 {[%emt 0:06:17]} 21. Rxd4 {[%emt 0:01:55]} cxd4 {[%emt 0:00:16]} 22. Bxf7+ {[%emt 0:00:16]} Kh8 {[%emt 0:00:14]} 23. Ng6+ {[%emt 0:00:10]} Kh7 {[%emt 0:00:44]} 24. Nxf8+ {[%emt 0:00:06]} Kh8 {[%emt 0:00:09]} 25. Nxd7 {[%emt 0:00:53]} 1-0

[Event "Int SVK-ch Open 2020"]
[Site "Drienica"]
[Date "2020.08.09"]
[Round "3.20"]
[White "Nandrazi, Dominik"]
[Black "Kulich, Filip"]
[Result "1-0"]
[ECO "A45"]
[WhiteElo "1875"]
[BlackElo "1397"]
[Annotator "NA"]
[PlyCount "39"]
[EventDate "2020.08.07"]
[EventType "swiss"]
[EventCountry "SVK"]
[SourceTitle "playchess.com"]
[Source "ChessBase"]
[SourceQuality "1"]
[TimeControl "40/5400+30:1800+30"]

1. d4 Nf6 2. Bf4 d5 3. e3 c5 {[%emt 0:11:53]} 4. c3 {[%emt 0:07:30]} Nc6 {[%emt 0:00:30]} 5. Nd2 {[%emt 0:00:30]} e6 {[%emt 0:00:30]} 6. Ngf3 {[%emt 0:00:30]} Bd6 {[%emt 0:00:30]} 7. Ne5 {[%emt 0:00:30]} Qc7 {[%emt 0:00:30]} 8. Bb5 {[%emt 0:00:30]} a6 {[%emt 0:00:30]} 9. Qa4 {[%emt 0:00:30]} Bd7 {[%emt 0:00:30]} 10. Nxd7 {[%emt 0:00:30]} Qxd7 {[%emt 0:00:30]} 11. Bxc6 {[%emt 0:00:30]} bxc6 {[%emt 0:00:30]} 12. dxc5 {[%emt 0:00:00]} Bxc5 {[%emt 0:00:00]} 13. Be5 {[%emt 0:00:00]} Be7 {[%emt 0:00:00]} 14. g4 {[%emt 0:00:00]} O-O {[%emt 0:00:47]} 15. h4 {[%emt 0:00:32]} c5 {[%emt 0:01:51]} 16. Qf4 {[%emt 0:00:04]} Ne8 {[%emt 0:00:34]} 17. Qh2 {[%emt 0:04:04]} Bd6 {[%emt 0:02:54]} 18. Nf3 {[%emt 0:01:12]} Bxe5 {[%emt 0:00:38]} 19. Nxe5 {[%emt 0:00:05]} f6 {[%emt 0:03:35]} 20. Nxd7 {[%emt 0:00:04]} 1-0

[Event "Int SVK-ch Open 2020"]
[Site "Drienica"]
[Date "2020.08.09"]
[Round "3.20"]
[White "Harvan, Tomas"]
[Black "Ferkova, Dominika"]
[Result "1-0"]
[ECO "B19"]
[WhiteElo "1794"]
[BlackElo "2111"]
[Annotator "RC"]
[PlyCount "78"]
[EventDate "2020.08.07"]
[EventType "swiss"]
[EventCountry "SVK"]
[SourceTitle "playchess.com"]
[Source "ChessBase"]
[SourceQuality "1"]
[TimeControl "40/5400+30:1800+30"]

1. e4 {[%emt 0:00:00]} c6 {[%emt 0:00:00]} 2. d4 {[%emt 0:00:00]} d5 {[%emt 0:00:00]} 3. Nc3 {[%emt 0:00:12]} dxe4 {[%emt 0:00:00]} 4. Nxe4 {[%emt 0:00:08]} Bf5 {[%emt 0:00:00]} 5. Ng3 {[%emt 0:00:16]} Bg6 {[%emt 0:00:00]} 6. h4 {[%emt 0:00:09]} h6 {[%emt 0:00:04]} 7. Nf3 {[%emt 0:00:17]} Nd7 {[%emt 0:00:06]} 8. h5 {[%emt 0:00:18]} Bh7 {[%emt 0:00:05]} 9. Bd3 {[%emt 0:00:10]} Bxd3 {[%emt 0:00:05]} 10. Qxd3 {[%emt 0:00:09]} e6 {[%emt 0:00:06]} 11. Bd2 {[%emt 0:00:30]} Ngf6 {[%emt 0:00:07]} 12. O-O-O {[%emt 0:00:13]} Be7 {[%emt 0:00:05]} 13. Ne4 {[%emt 0:01:28]} Nxe4 {[%emt 0:00:47]} 14. Qxe4 {[%emt 0:00:10]} Nf6 {[%emt 0:00:04]} 15. Qd3 {[%emt 0:03:10]} Qd5 {[%emt 0:02:28]} 16. c4 {[%emt 0:01:12]} Qe4 {[%emt 0:00:09]} 17. Qb3 {[%emt 0:02:48]} b6 {[%emt 0:19:14]} 18. Rde1 {[%emt 0:06:55]} Qf5 {[%emt 0:01:59]} 19. Ne5 {[%emt 0:06:11]} O-O {[%emt 0:03:07]} 20. Nxc6 {[%emt 0:24:15]} Bd6 {[%emt 0:01:10]} 21. f3 {[%emt 0:06:57]} Nd7 {[%emt 0:02:20]} 22. g4 {[%emt 0:06:38]} Qf6 {[%emt 0:01:33]} 23. Kb1 {[%emt 0:01:26]} Rfc8 {[%emt 0:07:14]} 24. d5 {[%emt 0:05:05]} a6 {[%emt 0:12:22]} 25. Rhf1 {[%emt 0:05:33]} b5 {[%emt 0:15:56]} 26. Bc3 {[%emt 0:07:37]} Qg5 {[%emt 0:03:29]} 27. dxe6 {[%emt 0:06:12]} Nc5 {[%emt 0:04:45]} 28. exf7+ {[%emt 0:01:08]} Kxf7 {[%emt 0:01:25]} 29. Qc2 {[%emt 0:05:43]} Rxc6 {[%emt 0:02:06]} 30. Qe2 {[%emt 0:01:55]} Qe7 {[%emt 0:14:50]} 31. Qc2 {[%emt 0:02:03]} Qc7 {[%emt 0:02:04]} 32. Qf5+ {[%emt 0:03:05]} Kg8 {[%emt 0:00:39]} 33. Qd5+ {[%emt 0:02:25]} Kh8 {[%emt 0:00:14]} 34. g5 {[%emt 0:01:31]} Bf4 {[%emt 0:02:37]} 35. cxb5 {[%emt 0:01:00]} axb5 {[%emt 0:00:10]} 36. Re7 {[%emt 0:00:32]} Qxe7 {[%emt 0:00:37]} 37. Qxc6 {[%emt 0:00:09]} Qa7 {[%emt 0:03:15]} 38. a3 {[%emt 0:00:47]} Bxg5 {[%emt 0:02:37]} 39. Bd4 {[%emt 0:00:19]} Bf4 {[%emt 0:00:00]} 1-0

[Event "Int SVK-ch Open 2020"]
[Site "Drienica"]
[Date "2020.08.09"]
[Round "3.21"]
[White "Brhel, Jan"]
[Black "Sosovickova, Jana"]
[Result "1-0"]
[ECO "D31"]
[WhiteElo "2042"]
[BlackElo "1829"]
[Annotator "ChessBase"]
[PlyCount "67"]
[EventDate "2020.08.07"]
[EventType "swiss"]
[EventCountry "SVK"]
[SourceTitle "playchess.com"]
[Source "ChessBase"]
[SourceQuality "1"]
[TimeControl "40/5400+30:1800+30"]

1. d4 {[%emt 0:00:07]} d5 {[%emt 0:00:00]} 2. Nf3 {[%emt 0:00:15]} e6 {[%emt 0:00:29]} 3. c4 {[%emt 0:00:10]} c6 {[%emt 0:01:01]} 4. Nc3 {[%emt 0:00:10]} dxc4 {[%emt 0:01:24]} 5. a4 {[%emt 0:00:26]} Bb4 {[%emt 0:02:05]} 6. g3 {[%emt 0:01:35]} b5 {[%emt 0:04:32]} 7. Bg2 {[%emt 0:00:18]} Bb7 {[%emt 0:02:01]} 8. Ne5 {[%emt 0:01:12]} Qb6 {[%emt 0:04:41]} 9. O-O {[%emt 0:00:55]} Nf6 {[%emt 0:04:47]} 10. Be3 {[%emt 0:11:15]} Nd5 {[%emt 0:08:56]} 11. Bd2 {[%emt 0:00:27]} Nxc3 {[%emt 0:11:59]} 12. bxc3 {[%emt 0:00:24]} Bd6 {[%emt 0:02:52]} 13. Bf4 {[%emt 0:01:00]} Bxe5 {[%emt 0:12:35]} 14. Bxe5 {[%emt 0:00:11]} f6 {[%emt 0:03:05]} 15. Bd6 {[%emt 0:00:40]} a6 {[%emt 0:04:22]} 16. e4 {[%emt 0:00:28]} Kf7 {[%emt 0:01:22]} 17. f4 {[%emt 0:29:05]} Nd7 {[%emt 0:06:10]} 18. a5 {[%emt 0:01:15]} Qd8 {[%emt 0:03:50]} 19. e5 {[%emt 0:06:07]} f5 {[%emt 0:01:39]} 20. g4 {[%emt 0:00:39]} g6 {[%emt 0:07:24]} 21. gxf5 {[%emt 0:00:08]} exf5 {[%emt 0:00:17]} 22. d5 {[%emt 0:11:41]} cxd5 {[%emt 0:02:05]} 23. Bxd5+ {[%emt 0:00:11]} Bxd5 {[%emt 0:00:08]} 24. Qxd5+ {[%emt 0:00:07]} Kg7 {[%emt 0:00:36]} 25. e6 {[%emt 0:04:10]} Nf6 {[%emt 0:02:28]} 26. Qb7+ {[%emt 0:00:15]} Kh6 {[%emt 0:02:01]} 27. Be7 {[%emt 0:00:35]} Rb8 {[%emt 0:02:48]} 28. Bxd8 {[%emt 0:00:25]} Rxb7 {[%emt 0:00:23]} 29. Bxf6 {[%emt 0:00:12]} Rc8 {[%emt 0:01:12]} 30. Rf3 {[%emt 0:04:06]} Kh5 {[%emt 0:00:30]} 31. Rh3+ {[%emt 0:00:30]} Kg4 {[%emt 0:00:05]} 32. Rh4+ {[%emt 0:00:09]} Kf3 {[%emt 0:00:07]} 33. Rd1 {[%emt 0:00:27]} h5 {[%emt 0:00:48]} 34. Re1 {[%emt 0:00:31]} 1-0

[Event "Int SVK-ch Open 2020"]
[Site "Drienica"]
[Date "2020.08.09"]
[Round "3.21"]
[White "Banoci, Jaroslav"]
[Black "Sosovickova, Martina"]
[Result "1-0"]
[ECO "D02"]
[WhiteElo "1833"]
[BlackElo "1362"]
[Annotator "NA RC"]
[PlyCount "93"]
[EventDate "2020.08.07"]
[EventType "swiss"]
[EventCountry "SVK"]
[SourceTitle "playchess.com"]
[Source "ChessBase"]
[SourceQuality "1"]
[TimeControl "40/5400+30:1800+30"]

{[%evp 38,93,77,72,32767,32767,32767,67,171,154,146,32767,32767,37,77,75,92,26,32767,-7,13,9,6,14,28,0,521,27,355,34,229,235,225,212,218,255,334,327,564,556,645,860,741,865,936,710,783,2,7,8,445,449,1477,6331,1763,5561,29992,29993]} 1. d4 {[%emt 0:00:00]} d5 {[%emt 0:00:00]} 2. Nf3 {[%emt 0:00:04]} Nf6 {[%emt 0:00:00]} 3. Bf4 {[%emt 0:00:25]} c5 {[%emt 0:00:52]} 4. e3 {[%emt 0:00:16]} Nc6 {[%emt 0:00:44]} 5. c3 {[%emt 0:00:19]} Qb6 {[%emt 0:00:31]} 6. Qc1 {[%emt 0:00:32]} Bf5 {[%emt 0:00:36]} 7. Be2 {[%emt 0:00:47]} h6 {[%emt 0:02:46] D02: 1 d4 d5 2 Nf3 sidelines, including 2...Nf6 3 g3 and 2...Nf6 3 Bf4.} 8. h3 {[%emt 0:00:45]} e6 {[%emt 0:00:36]} 9. Na3 {[%emt 0:04:51]} c4 {[%emt 0:06:37] [#]} 10. b3 $146 {[%emt 0:08:18]} ({Predecessor:} 10. Nc2 Be7 11. O-O O-O 12. Re1 Qa5 13. Nd2 b5 14. Bf3 Be4 15. Bxe4 Nxe4 16. f3 {0-1 (65) Poschadel,A (1630)-Kneip,J (2102) Hamburg 2019}) 10... Bxa3 {[%emt 0:11:04]} 11. Qxa3 {[%emt 0:00:35]} cxb3 {[%emt 0:00:24]} 12. axb3 {[%emt 0:00:49]} Ne4 {[%emt 0:12:12]} 13. Rc1 {[%emt 0:05:04]} Qa5 {[%emt 0:09:12]} 14. Qb2 {[%emt 0:04:22]} O-O {[%emt 0:01:12]} 15. O-O {[%emt 0:02:38]} Rac8 {[%emt 0:05:27]} 16. Ne1 {[%emt 0:18:54]} Ne7 {[%emt 0:06:36]} 17. b4 {[%emt 0:11:19]} Qb6 {[%emt 0:01:25]} 18. Nd3 {[%emt 0:01:26]} Rfd8 {[%emt 0:11:03]} 19. f3 {[%emt 0:11:08]} Nd6 {[%emt 0:03:59]} 20. Nc5 {[%emt 0:01:21]} Bg6 {[%emt 0:08:02]} 21. Kh2 {[%emt 0:04:51]} Nef5 {[%emt 0:01:07]} 22. e4 {[%emt 0:01:03]} dxe4 {[%emt 0:01:24]} ({Black should try} 22... Ne7 $14) 23. fxe4 {[%emt 0:00:32]} Ne7 {[%emt 0:00:44]} 24. Bf3 {[%emt 0:01:15]} Nc6 {[%emt 0:03:03] [#]} 25. d5 $2 {[%emt 0:02:40]} ({White should try} 25. Qf2 $1 $18) 25... exd5 {[%emt 0:00:44]} 26. exd5 {[%emt 0:00:25]} Ne7 {[%emt 0:00:31]} 27. Qd2 {[%emt 0:01:54]} (27. Qe2 $16 Re8 28. Qf2) 27... Nef5 {[%emt 0:02:11]} 28. g4 {[%emt 0:01:26]} (28. c4 $16) 28... Nc4 $1 {[%emt 0:00:45]} 29. Qf2 {[%emt 0:03:00]} Nfd6 {[%emt 0:00:24]} 30. Rfe1 {[%emt 0:01:45]} Re8 {[%emt 0:01:18]} 31. Qd4 {[%emt 0:01:26]} Qc7 $2 {[%emt 0:01:27]} (31... Qd8 $11 {and Black is okay.}) 32. Re2 $2 {[%emt 0:02:21]} ({Only move:} 32. Rxe8+ $18 Rxe8 {[#]} 33. Qxc4 $1 {[%mdl 576] Pin}) 32... b6 $2 {[%emt 0:00:53]} (32... Qd8 $14) 33. Ne4 $2 {[%emt 0:03:34]} (33. Rxe8+ $18 Rxe8 {[#]} 34. Qxc4 $1 {[%mdl 576] Pin}) 33... Qd7 $2 {[%emt 0:00:55] [#]} (33... Bxe4 $1 $11 34. Rxe4 (34. Bxe4 Qd8 $11) 34... Qd7) 34. Nxd6 $1 {[%emt 0:00:17]} Nxd6 {[%emt 0:00:14] [#]} 35. c4 $1 {[%emt 0:00:41]} Rxe2+ {[%emt 0:01:56]} 36. Bxe2 {[%emt 0:00:13]} Qe7 {[%emt 0:00:54]} (36... Re8 {keeps fighting.} 37. Bf1 Re4) 37. Bf3 {[%emt 0:01:46]} Nb7 $2 {[%emt 0:01:38]} (37... f5 38. c5 Nb5) 38. d6 {[%emt 0:00:57]} Qd7 {[%emt 0:00:25]} 39. c5 {[%emt 0:00:36]} bxc5 {[%emt 0:00:43]} 40. bxc5 {[%emt 0:00:00]} Na5 {[%emt 0:00:00]} 41. Re1 {[%emt 0:03:23]} Nb3 {[%emt 0:02:47]} 42. Qe5 $2 {[%emt 0:07:05]} (42. c6 $18 Rxc6 43. Bxc6 Qxc6 44. Qxa7) 42... Nxc5 {[%emt 0:01:43]} 43. Rc1 {[%emt 0:00:34]} Nd3 $2 {[%emt 0:01:40]} (43... Ne6 $1 $11 {and Black has nothing to worry.}) 44. Qe7 {[%emt 0:04:55]} Qxe7 {[%emt 0:02:12]} (44... Rd8 $142) 45. Rxc8+ {[%emt 0:00:12]} Qf8 {[%emt 0:00:20]} 46. d7 {[%emt 0:00:16]} Nxf4 {[%emt 0:03:02]} 47. Rxf8+ {[%emt 0:00:22]} 1-0

[Event "Int SVK-ch Open 2020"]
[Site "Drienica"]
[Date "2020.08.09"]
[Round "3.22"]
[White "Bujna, Martin"]
[Black "Kardis, Benjamin"]
[Result "1/2-1/2"]
[ECO "A90"]
[WhiteElo "1841"]
[BlackElo "2042"]
[Annotator "NA"]
[PlyCount "60"]
[EventDate "2020.08.07"]
[EventType "swiss"]
[EventCountry "SVK"]
[SourceTitle "playchess.com"]
[Source "ChessBase"]
[SourceQuality "1"]
[TimeControl "40/5400+30:1800+30"]

1. d4 {[%emt 0:00:00]} f5 {[%emt 0:00:00]} 2. c4 {[%emt 0:00:10]} Nf6 {[%emt 0:00:00]} 3. Nf3 {[%emt 0:00:45]} e6 {[%emt 0:00:00]} 4. g3 {[%emt 0:01:05]} d5 {[%emt 0:00:00]} 5. Nc3 {[%emt 0:02:15]} c6 {[%emt 0:01:04]} 6. cxd5 {[%emt 0:02:17]} exd5 {[%emt 0:00:11]} 7. Bg2 {[%emt 0:03:29]} Bd6 {[%emt 0:00:07]} 8. Bg5 {[%emt 0:00:51]} h6 {[%emt 0:02:25]} 9. Bd2 {[%emt 0:01:14]} O-O {[%emt 0:01:37]} 10. Nh4 {[%emt 0:02:04]} Qe8 {[%emt 0:02:02]} 11. O-O {[%emt 0:02:29]} Ne4 {[%emt 0:00:37]} 12. Bf4 {[%emt 0:06:47]} Bxf4 {[%emt 0:01:30]} 13. gxf4 {[%emt 0:00:10]} Nd7 {[%emt 0:02:56]} 14. e3 {[%emt 0:03:29]} Ndf6 {[%emt 0:05:03]} 15. Nf3 {[%emt 0:00:27]} Ng4 {[%emt 0:06:25]} 16. h3 {[%emt 0:02:58]} Ngf6 {[%emt 0:00:08]} 17. Ne5 {[%emt 0:01:58]} Nd7 {[%emt 0:00:26]} 18. Nxe4 {[%emt 0:02:23]} fxe4 {[%emt 0:00:28]} 19. f3 {[%emt 0:06:06]} Nxe5 {[%emt 0:00:28]} 20. fxe5 {[%emt 0:01:12]} Qg6 {[%emt 0:02:19]} 21. Kh2 {[%emt 0:00:25]} exf3 {[%emt 0:02:19]} 22. Rxf3 {[%emt 0:01:18]} Bf5 {[%emt 0:01:06]} 23. Rg3 {[%emt 0:01:21]} Qh7 {[%emt 0:02:00]} 24. Qb3 {[%emt 0:01:49]} Rf7 {[%emt 0:08:18]} 25. Rg1 {[%emt 0:02:22]} Raf8 {[%emt 0:01:09]} 26. Qa3 {[%emt 0:00:15]} a6 {[%emt 0:01:49]} 27. Qd6 {[%emt 0:01:38]} Rd7 {[%emt 0:00:18]} 28. Qb4 {[%emt 0:01:06]} Rff7 {[%emt 0:02:29]} 29. Qd6 {[%emt 0:00:14]} Rf8 {[%emt 0:00:22]} 30. Qb4 {[%emt 0:00:12]} Rff7 {[%emt 0:16:48]} 1/2-1/2

[Event "Int SVK-ch Open 2020"]
[Site "Drienica"]
[Date "2020.08.09"]
[Round "3.22"]
[White "Ganzova, Veronika"]
[Black "Horbalova, Ivana"]
[Result "1-0"]
[ECO "C04"]
[WhiteElo "1614"]
[BlackElo "1306"]
[Annotator "NA"]
[PlyCount "55"]
[EventDate "2020.08.07"]
[EventType "swiss"]
[EventCountry "SVK"]
[SourceTitle "playchess.com"]
[Source "ChessBase"]
[SourceQuality "1"]
[TimeControl "40/5400+30:1800+30"]

1. e4 e6 2. d4 d5 3. Nd2 Nc6 4. Ngf3 Nf6 5. e5 Nd7 6. c3 f6 7. exf6 Qxf6 8. Bd3 e5 9. dxe5 Ncxe5 10. Bc2 Bd6 11. O-O O-O 12. Nxe5 Nxe5 13. Nb3 c6 14. f3 Bf5 15. Be3 Nc4 16. Bd4 Qh6 17. g3 Rae8 18. Bxf5 Rxf5 19. f4 Qh3 20. Qc2 Re4 21. Rae1 Rxe1 22. Rxe1 Kf7 23. Qe2 Kg8 24. Qe6+ Kh8 25. Qc8+ Bf8 26. Re8 h5 27. Rxf8+ Kh7 28. Rh8+ 1-0

[Event "Int SVK-ch Open 2020"]
[Site "Drienica"]
[Date "2020.08.09"]
[Round "3.23"]
[White "Soldan, Jan"]
[Black "Konyves, Almos"]
[Result "0-1"]
[ECO "B32"]
[WhiteElo "1783"]
[BlackElo "2090"]
[Annotator "ChessBase"]
[PlyCount "92"]
[EventDate "2020.08.07"]
[EventType "swiss"]
[EventCountry "SVK"]
[SourceTitle "playchess.com"]
[Source "ChessBase"]
[SourceQuality "1"]
[TimeControl "40/5400+30:1800+30"]

1. e4 {[%emt 0:06:32]} c5 {[%emt 0:00:00]} 2. Nf3 {[%emt 0:00:13]} Nc6 {[%emt 0:00:00]} 3. d4 {[%emt 0:00:13]} cxd4 {[%emt 0:00:00]} 4. Nxd4 {[%emt 0:00:06]} Qb6 {[%emt 0:00:01]} 5. Nxc6 {[%emt 0:06:35]} Qxc6 {[%emt 0:00:16]} 6. Nc3 {[%emt 0:00:11]} a6 {[%emt 0:01:29]} 7. Bd3 {[%emt 0:01:28]} e6 {[%emt 0:00:55]} 8. O-O {[%emt 0:00:38]} d6 {[%emt 0:00:59]} 9. Be3 {[%emt 0:00:20]} Nf6 {[%emt 0:02:49]} 10. h3 {[%emt 0:00:08]} b5 {[%emt 0:00:52]} 11. a3 {[%emt 0:05:20]} Bb7 {[%emt 0:00:39]} 12. Qe2 {[%emt 0:00:54]} Qc7 {[%emt 0:02:03]} 13. f4 {[%emt 0:03:58]} Be7 {[%emt 0:02:57]} 14. Rae1 {[%emt 0:04:12]} O-O {[%emt 0:12:43]} 15. Qf2 {[%emt 0:00:31]} Nd7 {[%emt 0:03:16]} 16. b4 {[%emt 0:06:12]} Qxc3 {[%emt 0:06:48]} 17. Bd4 {[%emt 0:00:25]} Qc6 {[%emt 0:01:33]} 18. e5 {[%emt 0:02:08]} Bh4 {[%emt 0:01:25]} 19. Qe2 {[%emt 0:00:56]} Bxe1 {[%emt 0:01:04]} 20. Rxe1 {[%emt 0:03:21]} dxe5 {[%emt 0:08:39]} 21. fxe5 {[%emt 0:00:19]} Rfd8 {[%emt 0:01:41]} 22. Qf2 {[%emt 0:01:32]} Nf8 {[%emt 0:03:45]} 23. c3 {[%emt 0:01:09]} Ng6 {[%emt 0:02:01]} 24. Re2 {[%emt 0:05:26]} Qxg2+ {[%emt 0:15:42]} 25. Qxg2 {[%emt 0:00:14]} Bxg2 {[%emt 0:00:04]} 26. Rxg2 {[%emt 0:00:08]} Nf4 {[%emt 0:00:05]} 27. Rg3 {[%emt 0:00:51]} Nxd3 {[%emt 0:00:06]} 28. Rxd3 {[%emt 0:00:13]} a5 {[%emt 0:00:48]} 29. Kf2 {[%emt 0:03:01]} axb4 {[%emt 0:00:36]} 30. axb4 {[%emt 0:01:23]} Ra2+ {[%emt 0:00:36]} 31. Kf3 {[%emt 0:01:17]} f5 {[%emt 0:01:46]} 32. Kf4 {[%emt 0:03:28]} Rf2+ {[%emt 0:01:46]} 33. Kg3 {[%emt 0:00:51]} Re2 {[%emt 0:00:38]} 34. Kf4 {[%emt 0:01:19]} Re4+ {[%emt 0:00:24]} 35. Kf3 {[%emt 0:01:05]} Rxe5 {[%emt 0:00:07]} 36. Rd1 {[%emt 0:00:37]} Red5 {[%emt 0:00:20]} 37. Re1 {[%emt 0:02:23]} Kf7 {[%emt 0:00:18]} 38. Ra1 {[%emt 0:03:57]} e5 {[%emt 0:02:57]} 39. Ra7+ {[%emt 0:00:12]} Kf6 {[%emt 0:00:44]} 40. Bc5 {[%emt 0:00:29]} Rd3+ {[%emt 0:00:27]} 41. Kg2 {[%emt 0:30:55]} Rd2+ {[%emt 0:30:15]} 42. Bf2 {[%emt 0:01:52]} Rc2 {[%emt 0:01:25]} 43. Ra6+ {[%emt 0:00:31]} Kg5 {[%emt 0:00:18]} 44. Kf3 {[%emt 0:02:16]} Rd3+ {[%emt 0:00:22]} 45. Be3+ {[%emt 0:00:31]} f4 {[%emt 0:00:05]} 46. h4+ {[%emt 0:00:29]} Kf5 {[%emt 0:00:11]} 0-1

[Event "Int SVK-ch Open 2020"]
[Site "Drienica"]
[Date "2020.08.09"]
[Round "3.23"]
[White "Andras, Anton"]
[Black "Stanko, Ivan"]
[Result "0-1"]
[ECO "B34"]
[WhiteElo "1582"]
[BlackElo "1848"]
[Annotator "NA"]
[PlyCount "40"]
[EventDate "2020.08.07"]
[EventType "swiss"]
[EventCountry "SVK"]
[SourceTitle "playchess.com"]
[Source "ChessBase"]
[SourceQuality "1"]
[TimeControl "40/5400+30:1800+30"]

1. e4 c5 2. Nf3 Nc6 3. Nc3 g6 4. d4 cxd4 5. Nxd4 Bg7 6. Nxc6 bxc6 7. Bc4 Qc7 8. O-O Nf6 9. Re1 d6 10. Qf3 O-O 11. Bb3 Ng4 12. Qg3 a5 13. a4 Rb8 14. Bf4 Bd4 15. Re2 Rb4 16. h3 Nf6 17. Qf3 Be6 18. Bxe6 fxe6 19. b3 Nh5 20. g3 e5 0-1

[Event "Int SVK-ch Open 2020"]
[Site "Drienica"]
[Date "2020.08.09"]
[Round "3.24"]
[White "Sevcik, Lubomir"]
[Black "Kucera, Michal"]
[Result "0-1"]
[ECO "E24"]
[WhiteElo "1748"]
[BlackElo "1991"]
[Annotator "ChessBase"]
[PlyCount "56"]
[EventDate "2020.08.07"]
[EventType "swiss"]
[EventCountry "SVK"]
[SourceTitle "playchess.com"]
[Source "ChessBase"]
[SourceQuality "1"]
[TimeControl "40/5400+30:1800+30"]

1. d4 {[%emt 0:00:08]} Nf6 {[%emt 0:00:00]} 2. c4 {[%emt 0:00:11]} e6 {[%emt 0:00:00]} 3. Nc3 {[%emt 0:00:13]} Bb4 {[%emt 0:00:02]} 4. a3 {[%emt 0:00:33]} Bxc3+ {[%emt 0:00:11]} 5. bxc3 {[%emt 0:00:15]} c5 {[%emt 0:01:54]} 6. Qa4 {[%emt 0:07:50]} O-O {[%emt 0:04:06]} 7. Bg5 {[%emt 0:00:05]} h6 {[%emt 0:00:21]} 8. Bxf6 {[%emt 0:01:15]} Qxf6 {[%emt 0:00:16]} 9. Nf3 {[%emt 0:00:29]} d6 {[%emt 0:02:33]} 10. e3 {[%emt 0:04:28]} e5 {[%emt 0:15:15]} 11. Bd3 {[%emt 0:03:55]} Bd7 {[%emt 0:20:11]} 12. Qc2 {[%emt 0:00:44]} Nc6 {[%emt 0:06:03]} 13. d5 {[%emt 0:07:21]} Na5 {[%emt 0:02:17]} 14. O-O {[%emt 0:05:48]} Qe7 {[%emt 0:04:41]} 15. Nd2 {[%emt 0:02:00]} f5 {[%emt 0:01:04]} 16. Nb3 {[%emt 0:15:48]} Ba4 {[%emt 0:03:02]} 17. Rab1 {[%emt 0:01:44]} Bxb3 {[%emt 0:01:26]} 18. Rxb3 {[%emt 0:00:16]} Nxb3 {[%emt 0:00:11]} 19. Qxb3 {[%emt 0:00:07]} e4 {[%emt 0:01:31]} 20. Bc2 {[%emt 0:02:23]} Rab8 {[%emt 0:01:28]} 21. Rb1 {[%emt 0:01:41]} Qe5 {[%emt 0:02:27]} 22. g3 {[%emt 0:01:55]} g5 {[%emt 0:04:00]} 23. Re1 {[%emt 0:04:51]} Rf7 {[%emt 0:04:24]} 24. Bd1 {[%emt 0:01:00]} Rg7 {[%emt 0:02:05]} 25. h3 {[%emt 0:00:26]} Rf8 {[%emt 0:05:17]} 26. Kg2 {[%emt 0:03:04]} f4 {[%emt 0:00:48]} 27. exf4 {[%emt 0:00:12]} gxf4 {[%emt 0:00:13]} 28. Bf3 {[%emt 0:02:04]} exf3+ {[%emt 0:00:43]} 0-1

[Event "Int SVK-ch Open 2020"]
[Site "Drienica"]
[Date "2020.08.09"]
[Round "3.24"]
[White "Dragula, Miroslav"]
[Black "Sevcik, Ondrej"]
[Result "1-0"]
[ECO "D31"]
[WhiteElo "1566"]
[BlackElo "1017"]
[Annotator "NA"]
[PlyCount "81"]
[EventDate "2020.08.07"]
[EventType "swiss"]
[EventCountry "SVK"]
[SourceTitle "playchess.com"]
[Source "ChessBase"]
[SourceQuality "1"]
[TimeControl "40/5400+30:1800+30"]

1. d4 d5 2. c4 e6 3. Nc3 f5 4. Nf3 c6 5. e3 Nf6 6. Bd3 Be7 7. Bd2 O-O 8. Qc2 Bd7 9. c5 Be8 10. h3 Nbd7 11. O-O-O Bh5 12. Rdf1 Bxf3 13. gxf3 b6 14. Na4 Qc7 15. Bb4 bxc5 16. dxc5 Rab8 17. a3 a5 18. Bd2 Qa7 19. b4 axb4 20. Bxb4 Ra8 21. Nb6 Nxb6 22. cxb6 Qb7 23. Bc5 Bxc5 24. Qxc5 Nd7 25. Qd6 Nxb6 26. Qxe6+ Kh8 27. Qd6 Rf6 28. Qb4 Ra4 29. Qb3 f4 30. Kc2 Qa7 31. Rb1 Nd7 32. Ba6 Qxa6 33. Qb8+ Rf8 34. Qd6 Qa7 35. Rb3 Rd8 36. Rhb1 Rc4+ 37. Kd2 Ra4 38. Rb7 Qa5+ 39. Kd1 Qa8 40. Rxd7 Rxd7 41. Rb8+ 1-0